bitfinex-derivatives/quotes_SOLF0:USTF0_20241101
["timestamp","ask_amount","ask_price","bid_price","bid_amount"]
[1730493513522,56.85973555,166.9,166.84,7.3859379]
[1730493514118,2.9976,166.89,166.86,2.998]
[1730493515327,56.85973555,166.9,166.84,7.3859379]
[1730493515628,52.47119765,166.9,166.87,2.9978]
[1730493516433,49.47379765,166.9,166.88,2.9977]
[1730493517239,52.47119765,166.9,166.88,2.9977]
[1730493522336,49.47379765,166.9,166.88,2.9977]
[1730493523434,7.3859379,166.93,166.87,7.3859379]
[1730493523730,10.3827379,166.94,166.91,2.9972]
[1730493524127,7.3859379,166.94,166.92,2.9969]
[1730493524334,7.3859379,166.94,166.89,7.3859379]
[1730493525043,7.3859379,166.94,166.93,2.9969]
[1730493525240,10.3823379,166.96,166.93,2.9969]
[1730493525536,7.3859379,166.96,166.94,2.9967]
[1730493526443,10.3821379,166.97,166.94,2.9967]
[1730493527147,10.3821379,166.97,166.93,2.9968]
[1730493527339,2.9966,166.95,166.91,7.3859379]
[1730493527640,2.9966,166.95,166.92,2.997]
[1730493529544,7.3859379,166.96,166.86,3.06]
[1730493529545,7.3859379,166.96,166.9,7.3859379]
[1730493529746,10.3822379,166.96,166.93,2.9968]
[1730493529949,7.3859379,166.97,166.92,7.3859379]
[1730493530244,2.9961,166.98,166.95,2.9965]
[1730493530748,7.3859379,166.97,166.92,7.3859379]
[1730493530941,10.3822379,166.97,166.92,7.3859379]
[1730493531751,10.3822379,166.97,166.93,2.9967]
[1730493536541,7.3859379,166.97,166.93,2.9967]
[1730493536849,2.9963,166.96,166.93,2.9967]
[1730493539239,7.3859379,166.96,166.9,9.9465379]
[1730493539440,2.9966,166.95,166.9,9.9465379]
[1730493539949,2.9966,166.95,166.92,2.997]
[1730493541257,7.3859379,166.94,166.9,9.9465379]
[1730493541554,7.3859379,166.96,166.93,2.9969]
[1730493541853,10.3823379,166.96,166.93,2.9969]
[1730493542558,10.3823379,166.96,166.91,7.3859379]
[1730493543164,10.3823379,166.96,166.93,2.9968]
[1730493544055,2.9964,166.96,166.92,2.997]
[1730493544253,3.06,167.0,166.94,7.3859379]
[1730493544254,7.3859379,167.0,166.94,7.3859379]
[1730493544756,7.3859379,167.0,166.96,2.9962]
[1730493545660,2.9959,166.99,166.95,2.9964]
[1730493546458,10.3818379,166.99,166.95,2.9964]
[1730493549161,2.9964,166.96,166.93,2.9968]
[1730493555467,2.9964,166.96,166.94,2.9967]
[1730493558765,2.9968,166.94,166.92,2.997]
[1730493566874,7.3859379,166.96,166.91,7.3859379]
[1730493567171,3.04,166.98,166.91,2.9972]
[1730493567172,2.997,166.93,166.91,2.9972]
[1730493567371,7.3859379,166.94,166.91,2.9972]
[1730493567873,10.3827379,166.94,166.91,2.9972]
[1730493569678,2.997,166.93,166.9,2.9973]
[1730493569874,7.3859379,166.94,166.9,2.9973]
[1730493570172,2.997,166.93,166.9,2.9973]
[1730493572272,2.997,166.93,166.91,2.9971]
[1730493577468,7.3859379,166.96,166.92,2.9969]
[1730493578176,2.9966,166.95,166.92,2.9969]
[1730493578684,2.9966,166.95,166.93,2.9968]
[1730493580389,2.9966,166.95,166.92,2.9969]
[1730493584985,59.82921529,166.99,166.95,2.9963]
[1730493585188,59.82921529,166.99,166.94,7.3859379]
[1730493585380,52.44327739,166.99,166.94,7.3859379]
[1730493585581,52.44327739,166.99,166.96,2.9963]
[1730493585781,59.82921529,166.99,166.96,2.9963]
[1730493586380,49.44737739,166.99,166.95,7.3859379]
[1730493588387,49.44737739,166.99,166.97,2.9961]
[1730493592185,52.44317739,166.99,166.97,2.9961]
[1730493598290,52.44317739,166.99,166.95,7.3859379]
[1730493598496,52.44317739,166.99,166.96,2.9962]
[1730493600691,56.83331529,166.99,166.92,1.2698]
[1730493600893,7.3859379,166.96,166.92,2.9969]
[1730493601595,7.3859379,166.96,166.91,2.9972]
[1730493602494,7.3859379,166.96,166.92,2.997]
[1730493602691,7.3859379,166.96,166.9,7.3859379]
[1730493602899,2.9967,166.94,166.91,2.9971]
[1730493607706,7.3859379,166.97,166.91,7.3859379]
[1730493607900,7.3859379,166.96,166.9,7.3859379]
[1730493608100,2.9969,166.93,166.9,10.3832379]
[1730493611794,2.9969,166.93,166.91,2.9972]
[1730493614603,2.9966,166.95,166.92,2.9969]
[1730493615501,2.9966,166.95,166.93,2.9968]
[1730493615905,7.3859379,166.99,166.92,7.3859379]
[1730493616202,7.3859379,166.99,166.94,7.3859379]
[1730493616592,2.9961,166.98,166.95,2.9965]
[1730493617598,2.9962,166.97,166.95,2.9965]
[1730493618903,7.3859379,166.99,166.95,2.9965]
[1730493618904,2.996,166.98,166.95,2.9965]
[1730493643923,2.9959,166.99,166.96,2.9963]
[1730493644119,2.9959,166.99,166.95,7.3859379]
[1730493645127,2.9959,166.99,166.96,2.9963]
[1730493646211,58.61214139,167.02,166.95,7.3859379]
[1730493646423,2.9957,167.0,166.97,2.9961]
[1730493646728,2.9957,167.0,166.97,10.3820379]
[1730493647325,3.18617667,167.01,166.98,2.996]
[1730493647532,0.19067667,167.01,166.97,7.3859379]
[1730493647825,51.22620349,167.02,167.0,7.3859379]
[1730493647826,1.7883099,167.02,167.0,7.3859379]
[1730493648223,1.7883099,167.02,167.0,10.3814379]
[1730493648532,1.7883099,167.02,167.01,7.3859379]
[1730493649231,1.7883099,167.02,167.01,10.3813379]
[1730493662439,0.44374331,167.03,167.02,2.9953]
[1730493662745,0.61089762,167.04,167.03,7.3859379]
[1730493664339,0.61089762,167.04,167.03,10.3810379]
[1730493679652,0.56745333,167.04,167.03,10.3810379]
[1730493679958,0.68512352,167.05,167.04,2.9949]
[1730493691062,0.68512352,167.05,167.03,79.42786513]
[1730493692265,0.68512352,167.05,167.04,2.9949]
[1730493702066,2.3032557,167.06,167.05,2.9947]
[1730493702268,2.3032557,167.06,167.05,10.3806379]
[1730493711691,3.10674843,167.07,167.05,7.3859379]
[1730493711876,3.33202448,167.09,167.08,10.3801379]
[1730493712380,1.17498751,167.1,167.09,2.994]
[1730493714381,1.52617196,167.12,167.08,7.3859379]
[1730493714582,57.01879622,167.15,167.13,2.9933]
[1730493714887,5.11789288,167.15,167.13,7.3859379]
[1730493715281,5.11789288,167.15,167.14,2.9931]
[1730493720685,2.90681952,167.16,167.15,2.9929]
[1730493720992,2.90681952,167.16,167.15,10.3788379]
[1730493723491,6.18307622,167.17,167.15,7.3859379]
[1730493723695,3.14530856,167.18,167.17,2.9926]
[1730493723897,3.14530856,167.18,167.17,10.3785379]
[1730493724595,6.13770856,167.18,167.17,7.3859379]
[1730493724787,6.13770856,167.18,167.16,7.3859379]
[1730493725887,6.13770856,167.18,167.15,2.9928]
[1730493725888,6.13770856,167.18,167.17,7.3859379]
[1730493727885,3.14530856,167.18,167.16,7.3859379]
[1730493728091,2.9926,167.17,167.16,7.3859379]
[1730493728499,2.9926,167.17,167.15,7.3859379]
[1730493728891,2.9927,167.16,167.15,7.3859379]
[1730493730489,3.14530856,167.18,167.13,79.38285663]
[1730493730490,2.993,167.15,167.13,79.38285663]
[1730493730896,2.993,167.15,167.13,82.37605663]
[1730493731695,10.53124646,167.18,167.13,7.3859379]
[1730493732004,2.9931,167.14,167.13,7.3859379]
[1730493732202,2.5823,167.17,167.13,7.3859379]
[1730493732399,2.993,167.15,167.13,7.3859379]
[1730493735791,2.9931,167.14,167.13,7.3859379]
[1730493736197,2.5823,167.17,167.1,7.3859379]
[1730493736198,7.3859379,167.15,167.1,7.3859379]
[1730493736399,2.9936,167.12,167.1,7.3859379]
[1730493737101,2.9938,167.11,167.09,7.3859379]
[1730493740906,2.9935,167.12,167.1,10.3797379]
[1730493741115,3.02,167.16,167.11,7.3859379]
[1730493741307,2.5823,167.17,167.13,7.3859379]
[1730493742101,2.993,167.15,167.13,7.3859379]
[1730493749211,2.9934,167.13,167.11,7.3859379]
[1730493750002,2.9932,167.14,167.11,10.3795379]
[1730493751412,2.9928,167.16,167.13,10.3791379]
[1730493751713,2.5823,167.17,167.13,10.3791379]
[1730493751896,2.9928,167.16,167.13,10.3791379]
[1730493753507,2.9929,167.15,167.13,10.3791379]
[1730493754616,2.5823,167.17,167.12,7.3859379]
[1730493754617,9.9682379,167.17,167.12,7.3859379]
[1730493755416,2.9933,167.14,167.12,7.3859379]
[1730493756317,7.3859379,167.16,167.1,7.3859379]
[1730493756913,7.3859379,167.14,167.1,7.3859379]
[1730493757218,7.3859379,167.16,167.1,10.3796379]
[1730493757514,2.9933,167.13,167.1,10.3796379]
[1730493759815,2.9933,167.13,167.12,7.3859379]
[1730493767115,2.9933,167.13,167.1,2.9937]
[1730493767116,2.9933,167.13,167.1,10.3796379]
[1730493767424,2.9933,167.13,167.11,2.9935]
[1730493769012,2.9936,167.11,167.1,7.3859379]
[1730493769212,2.9936,167.11,167.09,7.3859379]
[1730493770224,2.9936,167.11,167.09,10.3799379]
[1730493770422,7.3859379,167.16,167.1,7.3859379]
[1730493770924,7.3859379,167.16,167.11,2.9936]
[1730493771138,2.9933,167.14,167.11,2.9936]
[1730493771423,7.3859379,167.16,167.11,2.9936]
[1730493773224,2.9933,167.13,167.11,2.9936]
[1730493774625,2.9933,167.13,167.1,10.3796379]
[1730493776522,2.9933,167.13,167.1,2.9937]
[1730493780433,2.9933,167.13,167.11,7.3859379]
[1730493781133,2.9933,167.13,167.11,10.3795379]
[1730493784132,2.9933,167.13,167.11,7.3859379]
[1730493785434,7.3859379,167.16,167.09,7.3859379]
[1730493785631,7.3859379,167.13,167.07,7.3859379]
[1730493786027,2.9939,167.1,167.07,10.3801379]
[1730493788842,2.9939,167.1,167.08,2.9941]
[1730493791643,2.9942,167.08,167.05,11.7435379]
[1730493793139,2.9946,167.06,167.04,10.3808379]
[1730493794138,7.3859379,167.1,167.04,10.3808379]
[1730493794341,2.9944,167.07,167.04,10.3808379]
[1730493795344,2.9944,167.07,167.05,7.3859379]
[1730493796531,2.5656,167.13,167.06,2.9944]
[1730493796532,2.9941,167.09,167.06,2.9944]
[1730493801165,2.9943,167.08,167.05,2.9947]
[1730493801359,7.3859379,167.1,167.04,7.3859379]
[1730493801955,7.3859379,167.1,167.05,2.9947]
[1730493802959,2.9941,167.09,167.05,10.3805379]
[1730493803160,2.9941,167.09,167.05,7.3859379]
[1730493803663,2.9941,167.09,167.07,2.9943]
[1730493804259,2.9941,167.09,167.06,2.9945]
[1730493812056,2.994,167.1,167.06,2.9945]
[1730493812269,7.3859379,167.11,167.06,2.9945]
[1730493812554,7.3859379,167.1,167.04,7.3859379]
[1730493813149,2.9944,167.07,167.04,10.3807379]
[1730493817354,2.9945,167.06,167.04,10.3807379]
[1730493818061,2.9944,167.07,167.04,10.3807379]
[1730493819555,2.9944,167.07,167.04,7.3859379]
[1730493819755,2.9944,167.07,167.05,2.9947]
[1730493829866,2.9942,167.08,167.04,7.3859379]
[1730493830072,7.3859379,167.1,167.04,7.3859379]
[1730493831182,2.9941,167.09,167.06,2.9944]
[1730493832176,10.3799379,167.1,167.06,2.9944]
[1730493832883,7.3859379,167.1,167.06,2.9944]
[1730493833170,7.3859379,167.1,167.05,2.9946]
[1730493833873,7.3859379,167.1,167.04,7.3859379]
[1730493834566,2.9941,167.09,167.06,2.9945]
[1730493835075,2.9943,167.08,167.05,2.9947]
[1730493840181,2.994,167.1,167.07,2.9943]
[1730493840565,49.40657611,167.11,167.07,2.9943]
[1730493840774,2.994,167.09,167.06,10.3803379]
[1730493843370,7.3859379,167.1,167.04,7.3859379]
[1730493843575,2.9943,167.08,167.05,2.9947]
[1730493845678,2.9947,167.06,167.03,2.9951]
[1730493846194,7.3859379,167.09,167.03,7.3859379]
[1730493846373,2.9944,167.07,167.04,2.9948]
[1730493846873,49.40657611,167.11,167.04,7.3859379]
[1730493846874,7.3859379,167.1,167.04,7.3859379]
[1730493847074,49.40657611,167.11,167.06,7.3859379]
[1730493847275,49.40657611,167.11,167.09,7.3859379]
[1730493847673,49.40657611,167.11,167.08,7.3859379]
[1730493848273,49.40657611,167.11,167.08,10.3800379]
[1730493848274,52.40027611,167.11,167.08,10.3800379]
[1730493848483,2.9937,167.11,167.08,10.3800379]
[1730493861215,2.9933,167.14,167.1,2.9937]
[1730493861491,7.3859379,167.16,167.1,7.3859379]
[1730493862387,2.9931,167.14,167.11,2.9936]
[1730493862588,56.77891467,167.16,167.12,7.3859379]
[1730493862787,56.77891467,167.16,167.07,4.0189]
[1730493862788,49.39297677,167.16,167.14,7.3859379]
[1730493863797,49.39297677,167.16,167.14,10.3790379]
[1730493864289,52.38577677,167.16,167.14,7.3859379]
[1730493866496,52.38577677,167.16,167.07,4.0189]
[1730493866497,2.9932,167.14,167.11,2.9935]
[1730493867088,7.3859379,167.17,167.12,7.3859379]
[1730493867395,3.14530856,167.18,167.13,7.3859379]
[1730493867996,2.9929,167.16,167.13,10.3791379]
[1730493868187,2.9929,167.16,167.13,7.3859379]
[1730493870895,3.14530856,167.18,167.13,7.3859379]
[1730493871197,2.9929,167.15,167.13,7.3859379]
[1730493873197,2.9928,167.16,167.13,10.3791379]
[1730493873789,3.14530856,167.18,167.13,7.3859379]
[1730493873790,2.9927,167.17,167.13,7.3859379]
[1730493873989,7.3859379,167.17,167.12,74.99421874]
[1730493874701,2.9936,167.12,167.09,7.3859379]
[1730493878013,2.9936,167.12,167.09,10.3799379]
[1730493878308,2.9936,167.12,167.09,7.3859379]
[1730493880310,2.9938,167.1,167.07,11.7521379]
[1730493881305,7.3859379,167.12,167.05,7.3859379]
[1730493881613,2.98,167.15,167.05,7.3859379]
[1730493881614,7.3859379,167.1,167.05,7.3859379]
[1730493881914,2.9939,167.1,167.07,7.3859379]
[1730493882699,2.9939,167.1,167.06,7.3859379]
[1730493883513,2.9939,167.1,167.07,2.9943]
[1730493883722,2.9939,167.1,167.04,7.3859379]
[1730493883723,7.3859379,167.1,167.04,7.3859379]
[1730493884007,7.3859379,167.07,167.02,7.3859379]
[1730493884307,10.3809379,167.04,167.0,72.04426818]
[1730493884507,7.3859379,167.04,167.0,72.04426818]
[1730493884710,7.3859379,167.01,166.96,7.3859379]
[1730493885112,2.996,166.98,166.94,7.3859379]
[1730493886608,7.3859379,166.99,166.94,7.3859379]
[1730493886819,2.9963,166.97,166.93,11.6803379]
[1730493888217,7.3859379,166.98,166.93,11.6803379]
[1730493888515,2.9963,166.96,166.93,11.6803379]
[1730493888815,2.9963,166.96,166.93,8.6835379]
[1730493889012,7.3859379,166.98,166.93,8.6835379]
[1730493889217,2.9962,166.97,166.93,11.6804379]
[1730493889417,7.3859379,166.99,166.94,7.3859379]
[1730493890012,2.9961,166.98,166.94,10.3826379]
[1730493890327,10.3820379,166.98,166.94,2.9967]
[1730493890616,7.3859379,166.98,166.94,2.9967]
[1730493890805,2.9962,166.97,166.94,2.9967]
[1730493891005,2.9962,166.97,166.93,8.6835379]
[1730493891006,10.3821379,166.97,166.93,4.2945]
[1730493893321,2.6896,167.02,166.89,4.3539]
[1730493893322,7.3859379,166.94,166.89,4.3539]
[1730493893510,7.3859379,166.94,166.89,1.3739]
[1730493893712,10.3829379,166.93,166.89,4.3714]
[1730493894014,7.3859379,166.91,166.87,1.3132]
[1730493894315,7.3859379,166.91,166.88,2.9977]
[1730493894524,10.3830379,166.92,166.88,2.9977]
[1730493895515,7.3859379,166.92,166.88,2.9977]
[1730493895717,7.3859379,166.92,166.87,1.3132]
[1730493895904,2.98,166.98,166.87,1.3132]
[1730493895905,7.3859379,166.91,166.87,1.3132]
[1730493896307,7.3859379,166.89,166.85,2.98]
[1730493896514,7.3859379,166.89,166.84,8.7352379]
[1730493896515,7.3859379,166.88,166.82,11.7201379]
[1730493896719,7.3859379,166.88,166.82,8.7401379]
[1730493896919,7.3859379,166.88,166.83,2.9986]
[1730493897724,2.998,166.87,166.83,2.9986]
[1730493898216,2.998,166.87,166.82,8.7401379]
[1730493898217,7.3859379,166.88,166.82,8.7401379]
[1730493898416,10.3842379,166.86,166.82,4.353]
[1730493899120,52.0645011,166.92,166.78,9.99017082]
[1730493899306,7.3859379,166.82,166.79,2.79509054]
[1730493900323,10.3851379,166.8,166.79,2.79509054]
[1730493900714,7.3859379,166.8,166.78,2.60423292]
[1730493900917,7.3859379,166.79,166.76,2.60577011]
[1730493901121,7.3859379,166.77,166.76,2.60577011]
[1730493901434,7.3859379,166.77,166.75,6.07406237]
[1730493901725,2.98,166.76,166.75,6.07406237]
[1730493902313,5.9799,166.76,166.75,6.07406237]
[1730493902512,17.50463494,166.76,166.75,6.07406237]
[1730493903121,14.52463494,166.76,166.75,6.07406237]
[1730493903325,5.9799,166.76,166.75,6.07406237]
[1730493904127,2.9996,166.78,166.75,6.07406237]
[1730493910735,2.9993,166.8,166.75,6.07406237]
[1730493911135,11.52473494,166.84,166.75,6.07406237]
[1730493911335,2.9989,166.82,166.75,6.07406237]
[1730493912048,2.9989,166.82,166.77,2.9996]
[1730493912237,5.9788,166.83,166.75,6.07406237]
[1730493912439,14.50473494,166.86,166.75,17.59879731]
[1730493912939,11.52473494,166.84,166.75,6.07406237]
[1730493913442,11.52473494,166.82,166.75,6.07406237]
[1730493913645,2.98,166.81,166.75,6.07406237]
[1730493914144,2.9995,166.79,166.75,6.07406237]
[1730493915042,2.98,166.81,166.75,6.07406237]
[1730493915244,5.9792,166.81,166.75,6.07406237]
[1730493915543,5.9792,166.81,166.77,2.9997]
[1730493915750,2.9992,166.81,166.77,2.9997]
[1730493916250,2.9989,166.82,166.78,2.9995]
[1730493916946,2.98,166.83,166.75,6.07406237]
[1730493917131,11.52473494,166.82,166.75,6.07406237]
[1730493917336,2.9993,166.8,166.76,2.9998]
[1730493918644,2.98,166.83,166.75,6.07406237]
[1730493918845,11.52473494,166.81,166.75,6.07406237]
[1730493919644,2.9997,166.78,166.75,6.07406237]
[1730493920743,2.9999,166.76,166.75,6.07406237]
[1730493924556,10.38191364,166.76,166.75,6.07406237]
[1730493928255,3.0001,166.75,166.74,3.06893744]
[1730493930663,2.9998,166.77,166.74,3.06893744]
[1730493931154,10.38161364,166.78,166.74,6.06923744]
[1730493931350,7.38201364,166.79,166.74,3.06893744]
[1730493932554,2.9996,166.78,166.75,3.0]
[1730493933057,2.9996,166.78,166.74,3.06893744]
[1730493933058,2.9998,166.77,166.74,3.06893744]
[1730493933353,11.52977796,166.79,166.74,3.06893744]
[1730493933748,2.98,166.8,166.74,3.06893744]
[1730493934351,2.9996,166.78,166.74,6.06923744]
[1730493935760,2.98,166.8,166.75,3.0]
[1730493935761,2.9995,166.79,166.75,3.0]
[1730493938555,5.9793,166.8,166.76,2.9999]
[1730493938950,2.98,166.8,166.76,2.9999]
[1730493939955,2.98,166.8,166.74,3.06893744]
[1730493940156,2.9994,166.79,166.75,3.0]
[1730493945064,2.98,166.8,166.77,2.9996]
[1730493945969,5.9793,166.8,166.76,2.9998]
[1730493949173,2.9993,166.8,166.76,2.9998]
[1730493951171,11.52977796,166.83,166.74,5.61153744]
[1730493951368,53.3723432,166.85,166.75,11.52977796]
[1730493951369,2.98,166.82,166.75,11.52977796]
[1730493951684,53.7631432,166.85,166.76,1.3546]
[1730493952177,2.9989,166.82,166.78,2.9995]
[1730493952578,10.37502705,166.82,166.78,2.9995]
[1730493956184,7.37612705,166.82,166.76,8.73072705]
[1730493956486,2.999,166.81,166.76,8.73072705]
[1730493961989,2.9992,166.8,166.76,8.73072705]
[1730493963000,2.9992,166.8,166.74,5.61153744]
[1730493963001,7.37612705,166.78,166.74,3.06893744]
[1730493963205,7.37612705,166.77,166.74,3.06893744]
[1730493963801,3.0001,166.75,166.74,3.06893744]
[1730493982514,10.37622705,166.75,166.74,3.06893744]
[1730493989114,7.37612705,166.75,166.72,3.17316949]
[1730493989329,10.37662705,166.73,166.72,3.17316949]
[1730493989532,13.35662705,166.73,166.72,3.17316949]
[1730493991618,13.35662705,166.73,166.69,3.68256293]
[1730493991619,3.001,166.7,166.69,3.09312683]
[1730493991832,3.001,166.7,166.66,3.81985376]
[1730493991833,11.28093269,166.7,166.66,3.81985376]
[1730493992033,7.37612705,166.67,166.64,3.09307828]
[1730493992226,2.98,166.66,166.64,3.09307828]
[1730493992930,2.98,166.66,166.63,3.16200945]
[1730493993231,7.37612705,166.64,166.63,3.16200945]
[1730493993432,10.37822705,166.64,166.63,3.16200945]
[1730493994230,7.37612705,166.64,166.62,2.78912592]
[1730493994427,3.0023,166.63,166.62,2.78912592]
[1730493994620,7.37612705,166.64,166.59,8.58317652]
[1730493994816,2.98,166.66,166.59,8.58317652]
[1730493994817,7.37612705,166.62,166.59,8.58317652]
[1730493995022,3.0028,166.6,166.59,8.58317652]
[1730493995229,10.37892705,166.6,166.59,8.58317652]
[1730493995427,10.37892705,166.6,166.57,4.65976158]
[1730493995428,7.37612705,166.6,166.57,4.65976158]
[1730493995824,7.37612705,166.58,166.57,4.65976158]
[1730493996243,10.37932705,166.58,166.57,4.65976158]
[1730493998725,3.0033,166.57,166.56,4.88263803]
[1730493999326,7.37612705,166.56,166.54,4.11302664]
[1730493999531,10.35612705,166.56,166.54,4.11302664]
[1730493999933,3.0037,166.55,166.54,4.11302664]
[1730494005231,3.0041,166.53,166.52,3.44245557]
[1730494005432,3.0041,166.53,166.51,5.17882526]
[1730494005433,7.37612705,166.53,166.51,5.17882526]
[1730494005827,3.0042,166.52,166.51,5.17882526]
[1730494010441,3.0044,166.51,166.46,1.3039]
[1730494010647,13.36052705,166.51,166.46,1.3039]
[1730494010836,10.35612705,166.51,166.46,1.3039]
[1730494011036,7.37612705,166.48,166.46,1.3039]
[1730494012150,3.0051,166.47,166.46,1.3039]
[1730494012748,7.37612705,166.47,166.44,1.301]
[1730494012936,10.38162705,166.45,166.44,1.301]
[1730494016058,3.0055,166.45,166.44,1.301]
[1730494020265,3.006,166.43,166.38,10.38272705]
[1730494020468,10.38212705,166.43,166.4,2.622]
[1730494022272,3.0062,166.42,166.4,2.622]
[1730494022767,7.37612705,166.43,166.4,2.622]
[1730494023065,3.0062,166.41,166.4,2.622]
[1730494023760,10.38232705,166.41,166.4,2.622]
[1730494024768,3.0064,166.4,166.39,1.263]
[1730494025168,7.37612705,166.41,166.36,1.3712]
[1730494025382,10.38312705,166.37,166.36,1.3712]
[1730494026375,2.98,166.43,166.36,1.3712]
[1730494026376,10.38302705,166.38,166.36,1.3712]
[1730494026759,7.37612705,166.38,166.36,1.3712]
[1730494028372,3.007,166.37,166.36,1.3712]
[1730494030668,7.37612705,166.38,166.36,1.3712]
[1730494030868,3.0069,166.38,166.36,1.3712]
[1730494031491,2.98,166.43,166.36,1.3712]
[1730494031492,10.38312705,166.37,166.36,1.3712]
[1730494032678,3.0073,166.35,166.34,1.2648]
[1730494032979,10.38342705,166.35,166.34,1.2648]
[1730494037993,10.38342705,166.35,166.3,3.0082]
[1730494038180,10.38342705,166.35,166.3,5.5717]
[1730494038493,10.38342705,166.35,166.31,3.008]
[1730494039487,10.38342705,166.35,166.3,9.93962705]
[1730494039488,7.37612705,166.37,166.32,7.37612705]
[1730494040085,7.37612705,166.37,166.33,3.0076]
[1730494040086,10.38322705,166.37,166.33,3.0076]
[1730494040684,3.0071,166.36,166.32,10.38392705]
[1730494040989,7.37612705,166.37,166.32,10.38392705]
[1730494041691,10.38322705,166.36,166.32,3.0078]
[1730494043493,6.0106,166.47,166.32,7.37612705]
[1730494043494,7.37612705,166.38,166.32,7.37612705]
[1730494044084,7.37612705,166.38,166.35,3.0072]
[1730494044691,7.37612705,166.38,166.35,4.301]
[1730494045791,10.38302705,166.38,166.35,1.2938]
[1730494047984,7.37612705,166.39,166.35,1.2938]
[1730494048596,7.37612705,166.37,166.35,1.2938]
[1730494049784,7.37612705,166.37,166.36,3.0071]
[1730494050080,7.37612705,166.37,166.35,1.2938]
[1730494050893,7.37612705,166.37,166.35,4.3011]
[1730494051988,10.38282705,166.39,166.35,4.3011]
[1730494052806,7.37612705,166.39,166.36,3.007]
[1730494053596,10.38272705,166.39,166.35,4.301]
[1730494055203,3.0069,166.38,166.35,1.2938]
[1730494055407,10.38302705,166.38,166.35,1.2938]
[1730494056890,3.007,166.37,166.35,1.2938]
[1730494063396,3.0068,166.38,166.36,3.0071]
[1730494066408,10.38282705,166.39,166.36,3.0071]
[1730494066609,10.38282705,166.39,166.35,1.2938]
[1730494066610,10.38282705,166.39,166.35,4.301]
[1730494069705,7.37612705,166.37,166.31,7.37612705]
[1730494070009,7.37612705,166.35,166.3,12.91962705]
[1730494070605,3.0076,166.34,166.31,3.008]
[1730494071703,3.0076,166.34,166.31,10.38412705]
[1730494077817,7.37612705,166.38,166.33,7.37612705]
[1730494078207,3.0072,166.36,166.33,10.38372705]
[1730494079014,3.0072,166.36,166.33,3.0076]
[1730494080313,10.38352705,166.35,166.32,3.0078]
[1730494081513,7.37612705,166.33,166.29,10.35612705]
[1730494081921,3.008,166.32,166.29,10.35612705]
[1730494082108,7.37612705,166.33,166.28,4.3713]
[1730494082309,7.37612705,166.33,166.28,7.3513]
[1730494083012,7.37612705,166.33,166.28,11.71892705]
[1730494083211,7.37612705,166.33,166.29,3.0083]
[1730494084314,3.008,166.32,166.29,3.0083]
[1730494089122,7.37612705,166.33,166.29,3.0083]
[1730494089322,3.0079,166.32,166.29,3.0083]
[1730494090726,3.0079,166.32,166.28,7.37612705]
[1730494090927,3.0079,166.32,166.3,3.0082]
[1730494091127,3.0079,166.32,166.28,7.37612705]
[1730494092232,3.0079,166.32,166.29,3.0083]
[1730494093126,7.37612705,166.36,166.31,7.37612705]
[1730494093311,3.0076,166.34,166.31,10.38412705]
[1730494095529,3.0074,166.35,166.32,3.0077]
[1730494096723,3.0074,166.35,166.31,10.38412705]
[1730494097218,3.0071,166.36,166.33,3.0076]
[1730494097717,7.37612705,166.37,166.33,7.37612705]
[1730494097916,7.37612705,166.37,166.31,7.37612705]
[1730494098125,7.37612705,166.36,166.31,7.37612705]
[1730494098341,7.37612705,166.34,166.3,7.37612705]
[1730494098629,7.37612705,166.34,166.25,1.3716]
[1730494098630,7.37612705,166.34,166.29,7.37612705]
[1730494098818,3.0079,166.32,166.29,7.37612705]
[1730494099132,7.37612705,166.33,166.29,7.37612705]
[1730494099430,3.0083,166.3,166.27,7.37612705]
[1730494100015,3.0081,166.31,166.27,10.38492705]
[1730494101222,3.0081,166.31,166.28,7.37612705]
[1730494102832,7.37612705,166.33,166.28,7.37612705]
[1730494103132,3.0079,166.32,166.28,10.38462705]
[1730494109037,3.0079,166.32,166.28,7.37612705]
[1730494109235,7.37612705,166.33,166.28,7.37612705]
[1730494109737,10.38432705,166.3,166.26,3.0089]
[1730494109936,2.98,166.35,166.24,1.3247]
[1730494109937,7.37612705,166.28,166.24,1.3247]
[1730494110130,2.98,166.35,166.22,2.98]
[1730494110131,7.37612705,166.27,166.22,2.98]
[1730494110325,3.009,166.26,166.22,5.9895]